[Event "Late-Titled-Tuesday-Blitz-March-19-2024"]
[Site "Chess.com"]
[Date "2024.03.19"]
[Round "2"]
[White "MYMChessAcademy"]
[Black "Joachim100x"]
[Result "0-1"]
[WhiteElo "2214"]
[BlackElo "2501"]
[TimeControl "180+1"]
[EndTime "14:15:56 PDT"]
[Termination "Joachim100x won by resignation"]

1. e4 {[%clk 0:03:00.9]} 1... c5 {[%clk 0:02:59.4]} 2. Nf3 {[%clk 0:03:01]} 2...
e6 {[%clk 0:02:59.7]} 3. d4 {[%clk 0:03:00.9]} 3... cxd4 {[%clk 0:03:00.1]} 4.
Nxd4 {[%clk 0:03:01.5]} 4... Bc5 {[%clk 0:03:00.5]} 5. Nb3 {[%clk 0:03:01]} 5...
Bb6 {[%clk 0:03:00.8]} 6. Nc3 {[%clk 0:03:01.6]} 6... Ne7 {[%clk 0:03:00.8]} 7.
Bd3 {[%clk 0:03:02.2]} 7... O-O {[%clk 0:03:00.2]} 8. O-O {[%clk 0:03:02.8]}
8... Nbc6 {[%clk 0:03:00.7]} 9. a4 {[%clk 0:03:01.8]} 9... f5 {[%clk 0:02:59.9]}
10. Qe2 {[%clk 0:02:58.6]} 10... Nb4 {[%clk 0:02:59.5]} 11. Bg5 {[%clk
0:02:57.1]} 11... Nxd3 {[%clk 0:02:56.6]} 12. cxd3 {[%clk 0:02:58]} 12... f4
{[%clk 0:02:56.4]} 13. Qf3 {[%clk 0:02:54.2]} 13... h6 {[%clk 0:02:54.3]} 14.
Bxe7 {[%clk 0:02:51.4]} 14... Qxe7 {[%clk 0:02:54.3]} 15. d4 {[%clk 0:02:51.8]}
15... d6 {[%clk 0:02:53.7]} 16. Rae1 {[%clk 0:02:50.6]} 16... Bd7 {[%clk
0:02:53.7]} 17. Qg4 {[%clk 0:02:42.7]} 17... e5 {[%clk 0:02:47.7]} 18. Nd5
{[%clk 0:02:33.4]} 18... Qf7 {[%clk 0:02:44.3]} 19. Qf3 {[%clk 0:02:32.2]} 19...
Bxa4 {[%clk 0:02:41.7]} 20. dxe5 {[%clk 0:02:26.1]} 20... dxe5 {[%clk
0:02:41.6]} 21. Ra1 {[%clk 0:02:09.9]} 21... Bc6 {[%clk 0:02:39.9]} 22. Rfd1
{[%clk 0:02:05.6]} 22... Rad8 {[%clk 0:02:39.5]} 23. Nxb6 {[%clk 0:01:51.6]}
23... axb6 {[%clk 0:02:38.5]} 24. Nd2 {[%clk 0:01:43.6]} 24... Rd4 {[%clk
0:02:37]} 25. Rac1 {[%clk 0:01:37.9]} 25... Rfd8 {[%clk 0:02:36.1]} 26. Qe2
{[%clk 0:01:36.4]} 26... Qd7 {[%clk 0:02:28.3]} 27. Rc2 {[%clk 0:00:55.2]} 27...
Ba4 {[%clk 0:02:25.7]} 28. b3 {[%clk 0:00:12.8]} 28... Bxb3 {[%clk 0:02:25]} 29.
Rcc1 {[%clk 0:00:13.4]} 29... Bxd1 {[%clk 0:02:23.9]} 30. Rxd1 {[%clk
0:00:14.3]} 30... Rxd2 {[%clk 0:02:23.7]} 31. Rxd2 {[%clk 0:00:15.2]} 31... Qxd2
{[%clk 0:02:22.5]} 32. Qc4+ {[%clk 0:00:15.9]} 32... Kh8 {[%clk 0:02:22.4]} 33.
h3 {[%clk 0:00:16.8]} 33... f3 {[%clk 0:02:16.3]} 34. g3 {[%clk 0:00:15]} 34...
Qe1+ {[%clk 0:02:13.8]} 0-1

[Event "Late-Titled-Tuesday-Blitz-March-19-2024"]
[Site "Chess.com"]
[Date "2024.03.19"]
[Round "2"]
[White "Heliosis11"]
[Black "ChessSwole"]
[Result "0-1"]
[WhiteElo "2232"]
[BlackElo "2708"]
[TimeControl "180+1"]
[EndTime "14:15:59 PDT"]
[Termination "ChessSwole won by resignation"]

1. e4 {[%clk 0:03:00.9]} 1... c6 {[%clk 0:02:59.7]} 2. d4 {[%clk 0:03:00.2]}
2... d5 {[%clk 0:03:00.6]} 3. Nd2 {[%clk 0:03:00.4]} 3... dxe4 {[%clk
0:03:00.8]} 4. Nxe4 {[%clk 0:03:01.3]} 4... Nf6 {[%clk 0:03:01.4]} 5. Nxf6+
{[%clk 0:03:01.5]} 5... exf6 {[%clk 0:03:02.3]} 6. c3 {[%clk 0:03:01.9]} 6...
Bd6 {[%clk 0:03:02.7]} 7. Bd3 {[%clk 0:03:01.8]} 7... O-O {[%clk 0:03:03]} 8.
Ne2 {[%clk 0:02:56.5]} 8... Re8 {[%clk 0:03:03.9]} 9. Qc2 {[%clk 0:02:57.1]}
9... h5 {[%clk 0:03:03.7]} 10. O-O {[%clk 0:02:56.5]} 10... Nd7 {[%clk
0:03:01.8]} 11. Re1 {[%clk 0:02:55.8]} 11... h4 {[%clk 0:03:00.8]} 12. h3 {[%clk
0:02:55.4]} 12... Nf8 {[%clk 0:03:00.7]} 13. Be3 {[%clk 0:02:56]} 13... Be6
{[%clk 0:02:55.6]} 14. Nf4 {[%clk 0:02:54.4]} 14... Qc7 {[%clk 0:02:50.4]} 15.
Nxe6 {[%clk 0:02:54.2]} 15... Nxe6 {[%clk 0:02:45.7]} 16. Re2 {[%clk 0:02:39.3]}
16... Bh2+ {[%clk 0:02:44.1]} 17. Kh1 {[%clk 0:02:39.4]} 17... Bf4 {[%clk
0:02:44.7]} 18. Rae1 {[%clk 0:02:38.3]} 18... Bxe3 {[%clk 0:02:37.3]} 19. Rxe3
{[%clk 0:02:39.2]} 19... Re7 {[%clk 0:02:33]} 20. Bh7+ {[%clk 0:02:37.5]} 20...
Kf8 {[%clk 0:02:29.3]} 21. Bf5 {[%clk 0:02:38.4]} 21... Rae8 {[%clk 0:02:24.2]}
22. Qd1 {[%clk 0:02:32.1]} 22... Nf4 {[%clk 0:01:56.8]} 23. Qg4 {[%clk
0:02:23.7]} 23... g6 {[%clk 0:01:46.3]} 24. Bb1 {[%clk 0:02:21.8]} 24... Nd5
{[%clk 0:01:38.2]} 25. Qxh4 {[%clk 0:02:11.8]} 25... Kg7 {[%clk 0:01:26.3]} 26.
Rxe7 {[%clk 0:02:11.9]} 26... Rxe7 {[%clk 0:01:27.2]} 27. Rxe7 {[%clk
0:02:12.2]} 27... Qxe7 {[%clk 0:01:27.9]} 28. Qe4 {[%clk 0:02:12.8]} 28... Qc7
{[%clk 0:01:18.7]} 29. c4 {[%clk 0:02:05.3]} 29... Ne7 {[%clk 0:01:13.4]} 30. b3
{[%clk 0:02:02.6]} 30... Nf5 {[%clk 0:01:09.8]} 31. Qg4 {[%clk 0:01:58.3]} 31...
Nd6 {[%clk 0:01:02.3]} 32. Bd3 {[%clk 0:01:46]} 32... Qa5 {[%clk 0:01:02]} 33.
Qe2 {[%clk 0:01:40]} 33... Qc3 {[%clk 0:01:00.6]} 34. d5 {[%clk 0:01:38.9]}
34... cxd5 {[%clk 0:00:57.3]} 35. cxd5 {[%clk 0:01:39.8]} 35... Qd4 {[%clk
0:00:55.2]} 36. Bc4 {[%clk 0:01:35.7]} 36... Ne4 {[%clk 0:00:54.1]} 37. f3
{[%clk 0:01:27.9]} 37... Ng3+ {[%clk 0:00:53.7]} 0-1

[Event "Late-Titled-Tuesday-Blitz-March-19-2024"]
[Site "Chess.com"]
[Date "2024.03.19"]
[Round "2"]
[White "sansanathalia"]
[Black "ozates"]
[Result "1-0"]
[WhiteElo "2383"]
[BlackElo "2562"]
[TimeControl "180+1"]
[EndTime "14:15:59 PDT"]
[Termination "sansanathalia won by resignation"]

1. e4 {[%clk 0:03:00.9]} 1... e5 {[%clk 0:02:57.7]} 2. Nf3 {[%clk 0:03:00.1]}
2... Nc6 {[%clk 0:02:52.7]} 3. Bb5 {[%clk 0:02:58.6]} 3... d6 {[%clk 0:02:47.5]}
4. d4 {[%clk 0:02:51.3]} 4... exd4 {[%clk 0:02:46.8]} 5. Nxd4 {[%clk 0:02:49.2]}
5... Bd7 {[%clk 0:02:47.1]} 6. Bxc6 {[%clk 0:02:46.8]} 6... bxc6 {[%clk
0:02:48]} 7. Nc3 {[%clk 0:02:46.3]} 7... g6 {[%clk 0:02:40.6]} 8. O-O {[%clk
0:02:43.4]} 8... Bg7 {[%clk 0:02:34.5]} 9. Be3 {[%clk 0:02:42.8]} 9... Nf6
{[%clk 0:02:29.6]} 10. f3 {[%clk 0:02:35.8]} 10... Kf8 {[%clk 0:02:28.8]} 11.
Qd2 {[%clk 0:02:34.2]} 11... c5 {[%clk 0:02:28.2]} 12. Nde2 {[%clk 0:02:31.6]}
12... Rb8 {[%clk 0:02:28.2]} 13. Rab1 {[%clk 0:02:25]} 13... Be6 {[%clk
0:02:25]} 14. e5 {[%clk 0:02:16]} 14... Nd7 {[%clk 0:02:23.3]} 15. exd6 {[%clk
0:02:13.4]} 15... cxd6 {[%clk 0:02:24.2]} 16. Qxd6+ {[%clk 0:02:10.4]} 16... Kg8
{[%clk 0:02:23.8]} 17. Rfd1 {[%clk 0:02:06]} 17... Be5 {[%clk 0:02:21.4]} 18.
Qd2 {[%clk 0:02:01.9]} 18... Qc7 {[%clk 0:02:20.6]} 19. Bf4 {[%clk 0:01:57.2]}
19... Kg7 {[%clk 0:02:15.7]} 20. Ne4 {[%clk 0:01:37.3]} 20... Rbd8 {[%clk
0:02:12.8]} 21. Bxe5+ {[%clk 0:01:32.4]} 21... Nxe5 {[%clk 0:02:10.6]} 22. Qc3
{[%clk 0:01:29.7]} 22... f6 {[%clk 0:02:03.6]} 23. Nxc5 {[%clk 0:01:26.8]} 23...
Qb6 {[%clk 0:02:01.5]} 24. Nd4 {[%clk 0:01:19.8]} 24... Bxa2 {[%clk 0:02:00.2]}
25. Ra1 {[%clk 0:01:17.3]} 25... Bf7 {[%clk 0:01:55.4]} 26. Ra6 {[%clk
0:01:14.1]} 26... Qb8 {[%clk 0:01:45.6]} 27. Nce6+ {[%clk 0:01:11.4]} 27... Bxe6
{[%clk 0:01:45.6]} 28. Nxe6+ {[%clk 0:01:11.2]} 28... Kh6 {[%clk 0:01:46.2]} 29.
Nxd8 {[%clk 0:00:54.6]} 29... Rxd8 {[%clk 0:01:45.7]} 30. Rxd8 {[%clk
0:00:52.5]} 30... Qxd8 {[%clk 0:01:46.6]} 31. h3 {[%clk 0:00:50.5]} 31... Qd1+
{[%clk 0:01:45.9]} 32. Kh2 {[%clk 0:00:45.7]} 32... g5 {[%clk 0:01:31.3]} 33.
Qxe5 {[%clk 0:00:42.9]} 1-0

[Event "Late-Titled-Tuesday-Blitz-March-19-2024"]
[Site "Chess.com"]
[Date "2024.03.19"]
[Round "2"]
[White "SaqoChess_Twitch"]
[Black "SpeedofLight0"]
[Result "0-1"]
[WhiteElo "2657"]
[BlackElo "3070"]
[TimeControl "180+1"]
[EndTime "14:16:11 PDT"]
[Termination "SpeedofLight0 won by checkmate"]

1. d4 {[%clk 0:02:55.2]} 1... d6 {[%clk 0:02:57.6]} 2. c4 {[%clk 0:02:55.8]}
2... g6 {[%clk 0:02:57.4]} 3. Nf3 {[%clk 0:02:55.8]} 3... Bg7 {[%clk 0:02:57.4]}
4. Nc3 {[%clk 0:02:55.9]} 4... Nc6 {[%clk 0:02:56.6]} 5. Bf4 {[%clk 0:02:54.9]}
5... Nf6 {[%clk 0:02:51.4]} 6. h3 {[%clk 0:02:53.3]} 6... O-O {[%clk 0:02:51.2]}
7. e3 {[%clk 0:02:53.5]} 7... Nd7 {[%clk 0:02:49.8]} 8. Bg3 {[%clk 0:02:51]}
8... e5 {[%clk 0:02:49.7]} 9. dxe5 {[%clk 0:02:50.7]} 9... dxe5 {[%clk
0:02:48.3]} 10. Qc2 {[%clk 0:02:50.7]} 10... f5 {[%clk 0:02:47.9]} 11. Be2
{[%clk 0:02:34.8]} 11... e4 {[%clk 0:02:19.7]} 12. Nd2 {[%clk 0:02:30.4]} 12...
Nde5 {[%clk 0:02:17.6]} 13. a3 {[%clk 0:02:24.6]} 13... g5 {[%clk 0:02:13.6]}
14. Bxe5 {[%clk 0:02:12.6]} 14... Nxe5 {[%clk 0:02:13]} 15. g4 {[%clk
0:02:10.4]} 15... Nd3+ {[%clk 0:02:06.6]} 16. Bxd3 {[%clk 0:02:07.3]} 16... exd3
{[%clk 0:02:07.5]} 17. Qb3 {[%clk 0:02:06]} 17... fxg4 {[%clk 0:02:06.9]} 18.
hxg4 {[%clk 0:02:06.4]} 18... Bxg4 {[%clk 0:02:06.7]} 19. Qxb7 {[%clk
0:02:00.5]} 19... Rb8 {[%clk 0:02:03.1]} 20. Qg2 {[%clk 0:01:54.3]} 20... Rxb2
{[%clk 0:01:58]} 21. Nd5 {[%clk 0:01:24.9]} 21... h5 {[%clk 0:01:56]} 22. Rc1
{[%clk 0:00:53.3]} 22... c6 {[%clk 0:01:52.6]} 23. Nc3 {[%clk 0:00:47.6]} 23...
Qa5 {[%clk 0:01:46.5]} 24. Qxc6 {[%clk 0:00:37.4]} 24... Bxc3 {[%clk 0:01:46.1]}
25. Qg6+ {[%clk 0:00:12]} 25... Bg7 {[%clk 0:01:46]} 26. Qxd3 {[%clk 0:00:11.4]}
26... Rxf2 {[%clk 0:01:40.8]} 27. Kxf2 {[%clk 0:00:06.6]} 27... Rxd2+ {[%clk
0:01:40.8]} 28. Qxd2 {[%clk 0:00:07.5]} 28... Qxd2+ {[%clk 0:01:41.3]} 29. Kg3
{[%clk 0:00:08.4]} 29... Be5# {[%clk 0:01:41.2]} 0-1

[Event "Late-Titled-Tuesday-Blitz-March-19-2024"]
[Site "Chess.com"]
[Date "2024.03.19"]
[Round "2"]
[White "Zeitnot593"]
[Black "Nicolik"]
[Result "0-1"]
[WhiteElo "2272"]
[BlackElo "2522"]
[TimeControl "180+1"]
[EndTime "14:16:17 PDT"]
[Termination "Nicolik won by resignation"]

1. d4 {[%clk 0:03:00.9]} 1... d5 {[%clk 0:03:00.1]} 2. Nf3 {[%clk 0:03:00.8]}
2... Nc6 {[%clk 0:03:00]} 3. e3 {[%clk 0:03:00.1]} 3... Bf5 {[%clk 0:03:00.1]}
4. Bd3 {[%clk 0:02:59.8]} 4... e6 {[%clk 0:03:00.7]} 5. O-O {[%clk 0:02:59.1]}
5... Nf6 {[%clk 0:03:00.5]} 6. a3 {[%clk 0:02:59.6]} 6... Bd6 {[%clk 0:03:00.3]}
7. Qe2 {[%clk 0:02:59.4]} 7... Ne4 {[%clk 0:02:59.9]} 8. Nbd2 {[%clk 0:02:58]}
8... Qf6 {[%clk 0:02:59.5]} 9. c4 {[%clk 0:02:51.6]} 9... Qh6 {[%clk 0:02:53.5]}
10. c5 {[%clk 0:02:49.2]} 10... Be7 {[%clk 0:02:49]} 11. b4 {[%clk 0:02:40.2]}
11... Bf6 {[%clk 0:02:39]} 12. Bxe4 {[%clk 0:02:39.4]} 12... dxe4 {[%clk
0:02:39.2]} 13. Ne1 {[%clk 0:02:34.1]} 13... O-O {[%clk 0:02:38.7]} 14. Bb2
{[%clk 0:02:33.7]} 14... Rad8 {[%clk 0:02:37.7]} 15. Nc2 {[%clk 0:02:33.2]}
15... e5 {[%clk 0:02:35.7]} 16. Nb3 {[%clk 0:02:29.8]} 16... Qg6 {[%clk
0:02:26.5]} 17. Kh1 {[%clk 0:02:27.8]} 17... Be6 {[%clk 0:02:19.3]} 18. dxe5
{[%clk 0:02:15.4]} 18... Nxe5 {[%clk 0:02:16.4]} 19. Nbd4 {[%clk 0:02:13.8]}
19... Bc4 {[%clk 0:02:15.3]} 20. Qe1 {[%clk 0:02:03.8]} 20... Nd3 {[%clk
0:02:15]} 21. Qb1 {[%clk 0:01:57.8]} 21... Nxb2 {[%clk 0:02:15.4]} 22. Qxb2
{[%clk 0:01:58.7]} 22... Bxf1 {[%clk 0:02:15.7]} 23. Rxf1 {[%clk 0:01:56.1]}
23... Rd5 {[%clk 0:02:15.2]} 24. Qb3 {[%clk 0:01:50.7]} 24... Rfd8 {[%clk
0:02:15.3]} 25. h3 {[%clk 0:01:50.1]} 25... Be5 {[%clk 0:02:04.5]} 26. Qc4
{[%clk 0:01:40.5]} 26... c6 {[%clk 0:02:01.4]} 27. a4 {[%clk 0:01:40.5]} 27...
f5 {[%clk 0:01:52.9]} 28. f4 {[%clk 0:01:27.1]} 28... exf3 {[%clk 0:01:49.7]}
29. Rxf3 {[%clk 0:01:27.2]} 29... Kh8 {[%clk 0:01:46.2]} 30. a5 {[%clk
0:01:26.2]} 30... f4 {[%clk 0:01:44.4]} 31. a6 {[%clk 0:00:56.5]} 31... bxa6
{[%clk 0:01:37.8]} 32. e4 {[%clk 0:00:38.8]} 32... Rxd4 {[%clk 0:01:32.3]} 33.
Nxd4 {[%clk 0:00:38]} 33... Rxd4 {[%clk 0:01:33.2]} 34. Qxa6 {[%clk 0:00:36.3]}
34... Rd1+ {[%clk 0:01:28.2]} 35. Kh2 {[%clk 0:00:36.1]} 35... Qg3+ {[%clk
0:01:27.5]} 0-1

[Event "Late-Titled-Tuesday-Blitz-March-19-2024"]
[Site "Chess.com"]
[Date "2024.03.19"]
[Round "2"]
[White "Durarbayli"]
[Black "IMchanged"]
[Result "1-0"]
[WhiteElo "2969"]
[BlackElo "2650"]
[TimeControl "180+1"]
[EndTime "14:16:21 PDT"]
[Termination "Durarbayli won by resignation"]

1. e4 {[%clk 0:03:00.9]} 1... a6 {[%clk 0:03:00.9]} 2. d4 {[%clk 0:03:00.6]}
2... e6 {[%clk 0:03:00.9]} 3. Nf3 {[%clk 0:02:58.4]} 3... d5 {[%clk 0:03:00.2]}
4. e5 {[%clk 0:02:56.9]} 4... Bd7 {[%clk 0:02:59.6]} 5. a4 {[%clk 0:02:55.6]}
5... c5 {[%clk 0:02:59.1]} 6. c3 {[%clk 0:02:54.7]} 6... Nc6 {[%clk 0:02:55.7]}
7. Be2 {[%clk 0:02:50.5]} 7... cxd4 {[%clk 0:02:49.1]} 8. cxd4 {[%clk
0:02:50.1]} 8... Nge7 {[%clk 0:02:48.5]} 9. O-O {[%clk 0:02:49.8]} 9... Nf5
{[%clk 0:02:47.7]} 10. Na3 {[%clk 0:02:49.7]} 10... Rc8 {[%clk 0:02:44.7]} 11.
Nc2 {[%clk 0:02:47.6]} 11... Be7 {[%clk 0:02:39.8]} 12. Kh1 {[%clk 0:02:39.7]}
12... O-O {[%clk 0:02:34.6]} 13. g4 {[%clk 0:02:39.4]} 13... Nh4 {[%clk
0:02:34.7]} 14. Nxh4 {[%clk 0:02:39.5]} 14... Bxh4 {[%clk 0:02:35]} 15. f4
{[%clk 0:02:40.1]} 15... f6 {[%clk 0:02:29.5]} 16. Ra3 {[%clk 0:02:21.3]} 16...
fxe5 {[%clk 0:02:26.9]} 17. dxe5 {[%clk 0:02:21]} 17... Be7 {[%clk 0:02:13.1]}
18. Rh3 {[%clk 0:02:16.5]} 18... g6 {[%clk 0:02:09.3]} 19. Bd3 {[%clk
0:02:10.3]} 19... Qe8 {[%clk 0:01:47]} 20. Bd2 {[%clk 0:01:52.4]} 20... Bc5
{[%clk 0:01:25.9]} 21. b4 {[%clk 0:01:49.6]} 21... Ba7 {[%clk 0:01:25.2]} 22.
Qe1 {[%clk 0:01:42]} 22... Nd4 {[%clk 0:01:19.6]} 23. Qh4 {[%clk 0:01:38.9]}
23... Rf7 {[%clk 0:01:08.7]} 24. Nxd4 {[%clk 0:01:27.2]} 24... Bxd4 {[%clk
0:01:07.8]} 25. Bxg6 {[%clk 0:01:27.7]} 25... Bxe5 {[%clk 0:00:46.7]} 26. Bxh7+
{[%clk 0:01:06]} 26... Kf8 {[%clk 0:00:45.3]} 27. Bg6 {[%clk 0:01:03.4]} 27...
Bg7 {[%clk 0:00:45.3]} 28. Qh5 {[%clk 0:01:01.2]} 28... Rc2 {[%clk 0:00:42]} 29.
Bxc2 {[%clk 0:01:00.3]} 1-0

[Event "Late-Titled-Tuesday-Blitz-March-19-2024"]
[Site "Chess.com"]
[Date "2024.03.19"]
[Round "2"]
[White "DFeco"]
[Black "atbenina64"]
[Result "0-1"]
[WhiteElo "2441"]
[BlackElo "2735"]
[TimeControl "180+1"]
[EndTime "14:16:25 PDT"]
[Termination "atbenina64 won by checkmate"]

1. d4 {[%clk 0:03:00.9]} 1... Nf6 {[%clk 0:02:59.8]} 2. Nf3 {[%clk 0:03:00.9]}
2... g6 {[%clk 0:02:59.9]} 3. Nc3 {[%clk 0:02:57.6]} 3... d5 {[%clk 0:03:00]} 4.
Bf4 {[%clk 0:02:58.2]} 4... Bg7 {[%clk 0:02:59.3]} 5. Nb5 {[%clk 0:02:58.5]}
5... Na6 {[%clk 0:02:59.5]} 6. e3 {[%clk 0:02:59.1]} 6... O-O {[%clk 0:02:57.6]}
7. h3 {[%clk 0:02:50]} 7... Ne4 {[%clk 0:02:57.7]} 8. Bd3 {[%clk 0:02:44.8]}
8... c5 {[%clk 0:02:56.1]} 9. Bxe4 {[%clk 0:02:33.1]} 9... dxe4 {[%clk
0:02:55.5]} 10. Ne5 {[%clk 0:02:28.7]} 10... Qa5+ {[%clk 0:02:47.8]} 11. Nc3
{[%clk 0:02:27.4]} 11... Be6 {[%clk 0:02:39.2]} 12. O-O {[%clk 0:02:12.7]} 12...
f6 {[%clk 0:02:34.9]} 13. Ng4 {[%clk 0:02:11.5]} 13... g5 {[%clk 0:02:25.8]} 14.
d5 {[%clk 0:01:58.7]} 14... Bxg4 {[%clk 0:02:21.2]} 15. Qxg4 {[%clk 0:01:56.5]}
15... gxf4 {[%clk 0:02:22.1]} 16. exf4 {[%clk 0:01:52.5]} 16... f5 {[%clk
0:02:21.3]} 17. Qg3 {[%clk 0:01:51.9]} 17... Kh8 {[%clk 0:02:18.3]} 18. Rfd1
{[%clk 0:01:47.7]} 18... Nb4 {[%clk 0:02:17.9]} 19. d6 {[%clk 0:01:45.2]} 19...
exd6 {[%clk 0:02:16.5]} 20. Rxd6 {[%clk 0:01:44.8]} 20... Nxc2 {[%clk
0:02:16.3]} 21. Rd7 {[%clk 0:01:42.8]} 21... Rg8 {[%clk 0:02:09.8]} 22. Rad1
{[%clk 0:01:36.9]} 22... Bf6 {[%clk 0:01:56.7]} 23. Qh2 {[%clk 0:01:21.5]} 23...
e3 {[%clk 0:01:53.5]} 24. fxe3 {[%clk 0:01:06.9]} 24... Nxe3 {[%clk 0:01:51.4]}
25. R1d2 {[%clk 0:01:05.1]} 25... Bxc3 {[%clk 0:01:49.6]} 26. bxc3 {[%clk
0:01:04]} 26... Qxc3 {[%clk 0:01:50.5]} 27. g4 {[%clk 0:01:01.7]} 27... Qc1+
{[%clk 0:01:49.5]} 28. Kf2 {[%clk 0:01:00.4]} 28... Rae8 {[%clk 0:01:41]} 29.
Kf3 {[%clk 0:00:51.5]} 29... Nf1 {[%clk 0:01:34.3]} 30. Qf2 {[%clk 0:00:42.7]}
30... fxg4+ {[%clk 0:01:33.9]} 31. hxg4 {[%clk 0:00:39.8]} 31... Re3+ {[%clk
0:01:28.1]} 32. Kg2 {[%clk 0:00:31.7]} 32... Rxg4+ {[%clk 0:01:27.6]} 33. Kh1
{[%clk 0:00:27]} 33... Ng3+ {[%clk 0:01:24.3]} 34. Kh2 {[%clk 0:00:26.6]} 34...
Qh1# {[%clk 0:01:25.2]} 0-1

[Event "Late-Titled-Tuesday-Blitz-March-19-2024"]
[Site "Chess.com"]
[Date "2024.03.19"]
[Round "2"]
[White "Orest_Vovk"]
[Black "Eduard_Limonov"]
[Result "0-1"]
[WhiteElo "2504"]
[BlackElo "2862"]
[TimeControl "180+1"]
[EndTime "14:16:29 PDT"]
[Termination "Eduard_Limonov won by resignation"]

1. h4 {[%clk 0:03:00.9]} 1... e5 {[%clk 0:02:58.2]} 2. h5 {[%clk 0:03:01.2]}
2... d5 {[%clk 0:02:58.2]} 3. h6 {[%clk 0:03:01]} 3... Nxh6 {[%clk 0:02:57.6]}
4. d4 {[%clk 0:03:00.9]} 4... e4 {[%clk 0:02:55.5]} 5. Bxh6 {[%clk 0:03:00.1]}
5... gxh6 {[%clk 0:02:56.4]} 6. e3 {[%clk 0:03:00.7]} 6... c5 {[%clk 0:02:54.7]}
7. Ne2 {[%clk 0:02:58.9]} 7... Nc6 {[%clk 0:02:52.9]} 8. Nbc3 {[%clk 0:02:55.8]}
8... Be6 {[%clk 0:02:47.5]} 9. dxc5 {[%clk 0:02:51.3]} 9... Bxc5 {[%clk
0:02:44.8]} 10. Nf4 {[%clk 0:02:35.8]} 10... Bb4 {[%clk 0:02:42.8]} 11. Nxe6
{[%clk 0:02:23.3]} 11... fxe6 {[%clk 0:02:43.7]} 12. Qh5+ {[%clk 0:02:22.7]}
12... Kd7 {[%clk 0:02:44.1]} 13. Qxh6 {[%clk 0:02:21.6]} 13... Bxc3+ {[%clk
0:02:44.5]} 14. bxc3 {[%clk 0:02:20.9]} 14... Qa5 {[%clk 0:02:44.9]} 15. Qg7+
{[%clk 0:02:12.9]} 15... Kd6 {[%clk 0:02:44.7]} 16. Qg3+ {[%clk 0:02:08]} 16...
Ne5 {[%clk 0:02:44]} 17. Rd1 {[%clk 0:01:47.5]} 17... Qxc3+ {[%clk 0:02:43.6]}
18. Rd2 {[%clk 0:01:47.7]} 18... Rac8 {[%clk 0:02:43.2]} 19. Rh5 {[%clk
0:01:29.1]} 19... Rc6 {[%clk 0:02:38.1]} 20. Be2 {[%clk 0:01:08.3]} 20... Rb6
{[%clk 0:02:32.7]} 21. Qf4 {[%clk 0:00:36]} 21... Rb1+ {[%clk 0:02:11.4]} 22.
Bd1 {[%clk 0:00:35.2]} 22... Rg8 {[%clk 0:01:57.2]} 23. Rxh7 {[%clk 0:00:25.2]}
23... Kc6 {[%clk 0:01:41.3]} 24. Rh6 {[%clk 0:00:12.8]} 24... Nf3+ {[%clk
0:01:29.9]} 25. gxf3 {[%clk 0:00:07.5]} 25... Rxd1+ {[%clk 0:01:30.3]} 26. Kxd1
{[%clk 0:00:05]} 26... Rg1+ {[%clk 0:01:30.3]} 27. Ke2 {[%clk 0:00:05.4]} 27...
Qc4+ {[%clk 0:01:30.8]} 0-1

[Event "Late-Titled-Tuesday-Blitz-March-19-2024"]
[Site "Chess.com"]
[Date "2024.03.19"]
[Round "2"]
[White "Defenstrator"]
[Black "MikeSailer"]
[Result "1-0"]
[WhiteElo "2478"]
[BlackElo "2125"]
[TimeControl "180+1"]
[EndTime "14:16:33 PDT"]
[Termination "Defenstrator won by checkmate"]

1. g4 {[%clk 0:02:59.8]} 1... d5 {[%clk 0:02:50.8]} 2. Bg2 {[%clk 0:02:59.9]}
2... c6 {[%clk 0:02:51]} 3. c4 {[%clk 0:02:58]} 3... e6 {[%clk 0:02:50.5]} 4. d4
{[%clk 0:02:54.7]} 4... Bd6 {[%clk 0:02:49.4]} 5. Nf3 {[%clk 0:02:51]} 5... Nd7
{[%clk 0:02:46]} 6. Nc3 {[%clk 0:02:50.4]} 6... Ne7 {[%clk 0:02:38.8]} 7. O-O
{[%clk 0:02:42]} 7... Ng6 {[%clk 0:02:36.4]} 8. e4 {[%clk 0:02:40.1]} 8... dxe4
{[%clk 0:02:33.2]} 9. Nxe4 {[%clk 0:02:40.5]} 9... Bc7 {[%clk 0:02:26.7]} 10.
Bg5 {[%clk 0:02:34.9]} 10... f6 {[%clk 0:02:23]} 11. Be3 {[%clk 0:02:35.3]}
11... Nf4 {[%clk 0:02:17.1]} 12. Re1 {[%clk 0:02:29.5]} 12... Nxg2 {[%clk
0:02:16.3]} 13. Kxg2 {[%clk 0:02:29.9]} 13... Nf8 {[%clk 0:02:16.7]} 14. d5
{[%clk 0:02:27.8]} 14... cxd5 {[%clk 0:02:06.9]} 15. cxd5 {[%clk 0:02:27.9]}
15... e5 {[%clk 0:02:04.2]} 16. d6 {[%clk 0:02:25.1]} 16... Bb6 {[%clk
0:02:03.9]} 17. Qd5 {[%clk 0:02:12.5]} 17... Bxe3 {[%clk 0:01:52.3]} 18. Rxe3
{[%clk 0:02:08.1]} 18... Ne6 {[%clk 0:01:35.7]} 19. Kh1 {[%clk 0:01:49.9]} 19...
Bd7 {[%clk 0:01:27.3]} 20. g5 {[%clk 0:01:29.7]} 20... O-O {[%clk 0:01:08.4]}
21. gxf6 {[%clk 0:01:23.4]} 21... gxf6 {[%clk 0:01:08.4]} 22. Nc5 {[%clk
0:01:18.7]} 22... Re8 {[%clk 0:00:42.6]} 23. Rg1+ {[%clk 0:01:15.4]} 23... Kh8
{[%clk 0:00:42.9]} 24. Nxe5 {[%clk 0:01:16.2]} 24... Bc6 {[%clk 0:00:15.1]} 25.
Nf7# {[%clk 0:01:16]} 1-0